Workbook

Sheet EXT
A2: Zvolte jazyk | F2: =Translation!A3 -> Hauteur | J2: =Translation!A6 -> Porte sans moteur | M2: =Translation!A7 -> Porte avec moteur | U2: H | V2: =Translation!A26 -> Hauteur de la baie de construction [mm]
A3: Select a language | F3: =Translation!A4 -> Générale [mm] | G3: FOH | H3: D | I3: K | J3: min. CEL | K3: CPH*1 | L3: CPH*1 *2 | M3: =J3 -> min. CEL | N3: CPH*1 | O3: X | Q3: E1 | S3: E2 | U3: GH | V3: =Translation!A3&" "&Translation!A4 -> Hauteur Générale [mm]
A4: Wählen Sie eine Sprache: | D4: FR | F4: GH | G4: GH + 0 | H4: GH + 575 | I4: GH - 35 | J4: GH + 100 | K4: GH - 250 | L4: GH - 0 | M4: GH + 125 | N4: GH - 0 | O4: Black | P4: RUN 600 | Q4: =O4 -> Black | R4: =P4 -> RUN 600 | S4: =Q4 -> Black | T4: RUN 600 | U4: FOH | V4: =Translation!A9 -> Hauteur jusqu'à l'arête inférieure du profilé de linteau [mm]
A5: Wybierz język: | F5: 1875 | G5: =F5+0 -> 1875 | H5: =F5+575 -> 2450 | I5: =F5-35 -> 1840 | J5: =F5+100 -> 1975 | K5: =F5-250 -> 1625 | L5: =F5 -> 1875 | M5: =J5+(35-10) -> 2000 | N5: =F5 -> 1875 | O5: 3540 | P5: 3100 | Q5: 1400 | S5: 3265 | T5: 2950 | U5: D | V5: =Translation!A12 -> Profondeur du guidage [mm]
A6: Sélectionner une langue: | E6: REN | F6: 1955 | G6: =F6+0 -> 1955 | H6: 2530 | I6: 1920 | J6: 2055 | K6: 1705 | L6: =F6 -> 1955 | M6: 2080 | N6: 1955 | U6: K | V6: =Translation!A16 -> Arête inférieure du guidage horizontale [mm]
A7: Kies een taal: | F7: 2000 | G7: =F7+0 -> 2000 | H7: 2575 | I7: 1965 | J7: 2100 | K7: 1750 | L7: =F7 -> 2000 | M7: 2125 | N7: 2000 | U7: CEL | V7: =Translation!A8 -> Hauteur du plafond [mm]
E8: REN | F8: 2080 | G8: =F8+0 -> 2080 | H8: 2655 | I8: 2045 | J8: 2180 | K8: 1830 | L8: 2080 | M8: 2205 | N8: 2080 | U8: CPH | V8: =Translation!A10 -> Arête inférieure de la porte toute ouverte [mm]
F9: 2125 | G9: =F9+0 -> 2125 | H9: 2700 | I9: 2090 | J9: 2225 | K9: 1875 | L9: 2125 | M9: 2250 | N9: 2125 | U9: Y1 | V9: =Translation!A22 -> Point d'ancrage
F10: 2250 | G10: 2250 | H10: 2825 | I10: 2215 | J10: 2350 | K10: 2000 | L10: 2250 | M10: 2375 | N10: 2250 | P10: =O12 -> 4240 | T10: 4060 | U10: Y2 | V10: =Translation!A23 -> Point d'ancrage (W>3000 ou H>2500)
F11: 2375 | G11: 2375 | H11: 2950 | I11: 2340 | J11: 2475 | K11: 2125 | L11: 2375 | M11: 2500 | N11: 2375 | U11: X | V11: =Translation!A14 -> Longueur de la propulsion [mm]
F12: 2500 | G12: 2500 | H12: 3075 | I12: 2465 | J12: 2600 | K12: 2250 | L12: 2500 | M12: 2625 | N12: 2500 | O12: 4240 | S12: 3975 | U12: E1 | V12: =Translation!A18 -> Point d'ancrage de la glissière de propulsion [mm]
F13: 2625 | G13: =F13+0 -> 2625 | H13: 3200 | I13: 2590 | J13: 2725 | K13: 2375 | L13: =F13 -> 2625 | M13: 2750 | N13: 2625 | U13: E2 | V13: =Translation!A20 -> Point d'ancrage de la propulsion [mm]
A14: Z | D14: X | E14: REN | F14: =Translation!A49 -> = Le kit sans trou percé dans le cornier vertical, le cornier vertical en exécution blanc (RAL 9010) | U14: Z | V14: =Translation!A33 -> La position de la prise électrique env. 250 mm
G15: E2 | U15: *1 | V15: =Translation!A50 -> L´ouverture de passage peut être réduite par les accessoires installés en intérieur du vantail de porte (les poignées, les renforts etc.)
I16: D
K17: E1 | R17: =Translation!A28&" (GH = H = FOH)" -> Situation standard (GH = H = FOH)
D18: Y1 = 400 | M18: Y2 = 800 | U18: *2 | V18: =Translation!A51 -> avec la butée pour ventail de porte
V20: =Translation!A30 -> Assemblage de panneau et la conception de battant de porte est toujours considéré comme la base de FOH.
C24: 165
B27: =Translation!A34 -> Prise CEE 7/3 ou CEE 7/5 | U27: GH
B28: =Translation!A35 -> 230V, 50Hz, assuré par un disjoncteur 6 A (10 A) | U28: =
U29: H
U30: =
U31: FOH
R37: =Translation!A29&" (GH > H)" -> Situation hors de standard (GH > H) | W37: =Translation!A29&" (GH < H)" -> Situation hors de standard (GH < H)
F40: GH - 75 | K40: K | O40: GH | P40: CEL
AA48: H
U49: GH | Y49: GH
T50: H | U50: = | Y50: =
M51: 140 | U51: FOH | Y51: FOH
P56: =Translation!A52 -> Capacité min.de charge du plafond / capacité max.de charge des points d´ancre : 100kg
A57: =Translation!A24 -> Assemblage standard | G57: =Translation!A25 -> Assemblage alternatif
A58: >= 95 | E58: >=95 | G58: 0 - 94 | J58: 0 - 94
X62: https://www.door-documents.com/en/installation-drawing-ext
X63: Guardy EXT
Z66: =Translation!A31 -> VERSION: | AA66: =Translation!A32 -> FORMAT:
Z67: 1850 | AA67: A4

Sheet Translation (hidden)
A1: EXT
A2: =IF(EXT!D4=E2,1,IF(EXT!D4=F2,2,IF(EXT!D4=G2,3,IF(EXT!D4=H2,4,IF(EXT!D4=I2,5,IF(EXT!D4=J2,6,"Chyba")))))) -> 5 | E2: CZ | F2: EN | G2: DE | H2: PL | I2: FR | J2: NL
A3: =VLOOKUP(E3,E:J,$A$2,FALSE) -> Hauteur | E3: Obecná | F3: General | G3: Allgemeine | H3: Ogólna | I3: Hauteur | J3: Algemene
A4: Générale [mm] | E4: výška [mm] | F4: height [mm] | G4: Höhe [mm] | H4: wysokość [mm] | I4: Générale [mm] | J4: hoogte [mm]
A5: Hauteur minimale du plafond [mm] | E5: Min. výška stropu [mm] | F5: Min. height of ceiling [mm] | G5: Min. Deckenhöhe [mm] | H5: Min wysokość stropu [mm] | I5: Hauteur minimale du plafond [mm] | J5: Min. plafondhoogte [mm]
A6: Porte sans moteur | E6: Vrata bez motoru | F6: Manually operated | G6: Tor ohne Motor | H6: Brama bez napędu | I6: Porte sans moteur | J6: Deur zonder motor
A7: Porte avec moteur | E7: Vrata s motorem | F7: Electrically operated | G7: Tor mit Motor | H7: Brama z napędem | I7: Porte avec moteur | J7: Garaged. met motor
A8: Hauteur du plafond [mm] | E8: Výška stropu [mm] | F8: Height of ceiling [mm] | G8: Deckenhöhe [mm] | H8: Wysokość stropu [mm] | I8: Hauteur du plafond [mm] | J8: Plafondhoogte [mm]
A9: Hauteur jusqu'à l'arête inférieure du profilé de linteau [mm] | E9: Výška ke spodní hraně překladového profilu [mm] | F9: Height to bottom edge of lintel profile [mm] | G9: Höhe zur unteren Kante des Sturzprofiles [mm] | H9: Wysokość do dolnej krawędzi profilu nadproża [mm] | I9: Hauteur jusqu'à l'arête inférieure du profilé de linteau [mm] | J9: Hoogte vanaf de onderrand van het dwarsbalkprofiel [mm]
A10: Arête inférieure de la porte toute ouverte [mm] | E10: Spodní hrana plně otevřených vrat [mm] | F10: Bottom edge of fully open door [mm] | G10: Untere Kante des vollständig geöffneten Tors [mm] | H10: Dolna krawędź w pełni otwartej bramy [mm] | I10: Arête inférieure de la porte toute ouverte [mm] | J10: Onderste rand van een volledig geopende deur [mm]
A11: Arête inférieure de la porte toute ouverte (CPH) [mm] | E11: Spodní hrana plně otevřených vrat (CPH) [mm] | F11: Bottom edge of fully open door (CPH) [mm] | G11: Untere Kante des vollständig geöffneten Tors (CPH) [mm] | H11: Dolna krawędź w pełni otwartej bramy (CPH) [mm] | I11: Arête inférieure de la porte toute ouverte (CPH) [mm] | J11: Onderste rand van een volledig geopende deur (CPH) [mm]
A12: Profondeur du guidage [mm] | E12: Hloubka vedení [mm] | F12: Back room [mm] | G12: Führungstiefe [mm] | H12: Głębokość prowadzenia [mm] | I12: Profondeur du guidage [mm] | J12: Inbouwdiepte van de rails [mm]
A13: Profondeur du guidage (D) [mm] | E13: Hloubka vedení (D) [mm] | F13: Back room (D) [mm] | G13: Führungstiefe (D) [mm] | H13: Głębokość prowadzenia (D) [mm] | I13: Profondeur du guidage (D) [mm] | J13: Diepte van de geleidingsrail (D) [mm]
A14: Longueur de la propulsion [mm] | E14: Délka pohonu [mm] | F14: Length of motor [mm] | G14: Antriebslänge [mm] | H14: Długość napędu [mm] | I14: Longueur de la propulsion [mm] | J14: Inbouwdiepte incl. de aandrijving [mm]
A15: Longueur de la propulsion (X) [mm] | E15: Délka pohonu (X) [mm] | F15: Length of motor (X) [mm] | G15: Antriebslänge (X) [mm] | H15: Długość napędu (X) [mm] | I15: Longueur de la propulsion (X) [mm] | J15: Inbouwdiepte incl. de aandrijving (X) [mm]
A16: Arête inférieure du guidage horizontale [mm] | E16: Spodní hrana horizontálního vedení [mm] | F16: Bottom edge of horizontal tracks [mm] | G16: Untere Kante der Horizontalführung [mm] | H16: Dolna krawędź prowadzenia poziomego [mm] | I16: Arête inférieure du guidage horizontale [mm] | J16: Onderste rand van de horizontale rails [mm]
A17: Arête inférieure du guidage horizontale (K) [mm] | E17: Spodní hrana horizontálního vedení (K) [mm] | F17: Bottom edge of horizontal tracks (K) [mm] | G17: Untere Kante der Horizontalführung (K) [mm] | H17: Dolna krawędź prowadzenia poziomego (K) [mm] | I17: Arête inférieure du guidage horizontale (K) [mm] | J17: Onderste rand van de horizontale rails (K) [mm]
A18: Point d'ancrage de la glissière de propulsion [mm] | E18: Kotvící bod lišty pohonu [mm] | F18: Hanging point for motor track [mm] | G18: Verankerungspunkt der Antriebsleiste [mm] | H18: Punkt uchwycenia szyny napędu [mm] | I18: Point d'ancrage de la glissière de propulsion [mm] | J18: Bevestigingspunt van de motorgeleidingsrail [mm]
A19: Point d'ancrage de la glissière de propulsion (E1) [mm] | E19: Kotvící bod lišty pohonu (E1) [mm] | F19: Hanging point for motor track (E1) [mm] | G19: Verankerungspunkt der Antriebsleiste (E1) [mm] | H19: Punkt uchwycenia szyny napędu (E1) [mm] | I19: Point d'ancrage de la glissière de propulsion (E1) [mm] | J19: Bevestigingspunt van de motorgeleidingsrail (E1) [mm]
A20: Point d'ancrage de la propulsion [mm] | E20: Kotvící bod pohonu [mm] | F20: Hanging point for motor [mm] | G20: Verankerungspunkt des Antriebes [mm] | H20: Punkt uchwycenia napędu [mm] | I20: Point d'ancrage de la propulsion [mm] | J20: Bevestigingspunt van de aandrijvingsgeleidingsbalk [mm]
A21: Point d'ancrage de la propulsion (E2) [mm] | E21: Kotvící bod pohonu (E2) [mm] | F21: Hanging point for motor (E2) [mm] | G21: Verankerungspunkt des Antriebes (E2) [mm] | H21: Punkt uchwycenia napędu (E2) [mm] | I21: Point d'ancrage de la propulsion (E2) [mm] | J21: Bevestigingsp. van de aandrijvingsgeleidingsbalk (E2) [mm]
A22: Point d'ancrage | E22: Kotvící bod | F22: Hanging point | G22: Verankerungspunkt | H22: Punkt uchwycenia | I22: Point d'ancrage | J22: Bevestigingspunt
A23: Point d'ancrage (W>3000 ou H>2500) | E23: Kotvící bod (W>3000 nebo H>2500) | F23: Hanging point (W>3000 or H>2500) | G23: Verankerungspunkt (W>3000 oder H>2500) | H23: Punkt uchwycenia (W>3000 lub H>2500) | I23: Point d'ancrage (W>3000 ou H>2500) | J23: Bevestigingspunt (W>3000 of H>2500)
A24: Assemblage standard | E24: Standardní montáž | F24: Standard installation | G24: Standardmontage | H24: Instalacja standardowa | I24: Assemblage standard | J24: Standaardmontage
A25: Assemblage alternatif | E25: Alternativní montáž | F25: Alternative installation | G25: Alternative Montage | H25: Instalacja alternatywna | I25: Assemblage alternatif | J25: Alternatieve montage
A26: Hauteur de la baie de construction [mm] | E26: Výška stavebního otvoru [mm] | F26: Clear opening height [mm] | G26: Höhe der Bauöffnung [mm] | H26: Wysokość otworu budowlanego [mm] | I26: Hauteur de la baie de construction [mm] | J26: Dagmaat hoogte [mm]
A27: Hauteur de la baie de construction (H) [mm] | E27: Výška stavebního otvoru (H) [mm] | F27: Clear opening height (H) [mm] | G27: Höhe der Bauöffnung (H) [mm] | H27: Wysokość otworu budowlanego (H) [mm] | I27: Hauteur de la baie de construction (H) [mm] | J27: Dagmaat hoogte (H) [mm]
A28: Situation standard | E28: Standardní situace | F28: Standard situation | G28: Standardsituation | H28: Sytuacja standardowa | I28: Situation standard | J28: Standaardsituatie
A29: Situation hors de standard | E29: Nestandardní situace | F29: Non-standard situation | G29: Ungewöhnliche Situation | H29: Sytuacja niestandardowa | I29: Situation hors de standard | J29: Niet-standaardsituaties
A30: Assemblage de panneau et la conception de battant de porte est toujours considéré comme la base de FOH. | E30: Skladba panelů a design křídla je vždy řešen vůči FOH. | F30: Panel assembly and design of door leaf is always considered based on FOH. | G30: Die Paneelaufteilung und das Design des Torblattes wird immer auf der Basis von FOH-Mass gelöst. | H30: Skład paneli i konstrukcja skrzydła jest zawsze rozpatrywane na podstawie FOH. | I30: Assemblage de panneau et la conception de battant de porte est toujours considéré comme la base de FOH. | J30: Paneel samenstelling en complete opbouw van het deurblad wordt altijd gebaseerd op FOH.
A31: VERSION: | E31: Verze: | F31: Version: | G31: Version: | H31: Wersja: | I31: VERSION: | J31: Versie:
A32: FORMAT: | E32: Formát: | F32: Sheet: | G32: Format: | H32: Format: | I32: FORMAT: | J32: Formaat:
A33: La position de la prise électrique env. 250 mm | E33: Pozice zásuvky, cca. 250 mm | F33: Position of socket, ca. 250 mm | G33: Die Position der Steckdose ca.250 mm | H33: Położenie gniazda około 250 mm | I33: La position de la prise électrique env. 250 mm | J33: Positie van Eurostopcontact CEE, ca. 250mm
A34: Prise CEE 7/3 ou CEE 7/5 | E34: Zásuvka typu CEE 7/3 nebo CEE 7/5 | F34: CEE 7/3 or CEE 7/5 socket | G34: Steckdose CEE 7/3 oder CEE 7/5 | H34: Gniazdo CEE 7/3 lub CEE 7/5 | I34: Prise CEE 7/3 ou CEE 7/5 | J34: Eurostopcontact CEE 7/3 of CEE 7/5
A35: 230V, 50Hz, assuré par un disjoncteur 6 A (10 A) | E35: 230V, 50Hz, jištěno 6 A (10 A) jističem | F35: 230V, 50Hz, protect by 6 A (10 A) circuit breaker | G35: 230V, 50Hz, Sicherung 6 A (10 A) mit Schutzschalter | H35: 230V, 50Hz, ochrona za pomocą bezpiecznika 6A (10A) | I35: 230V, 50Hz, assuré par un disjoncteur 6 A (10 A) | J35: 230V, 50Hz, afgezekerd met 6A (10A)
A36: Largeur de baie [mm] | E36: Šířka stavebního otvoru [mm] | F36: Opening width [mm] | G36: Lichte Breite [mm] | H36: Szerokość otworu [mm] | I36: Largeur de baie [mm] | J36: Opening breedte
A37: Largeur de baie (W) [mm] | E37: Šířka stavebního otvoru (W) [mm] | F37: Opening width (W) [mm] | G37: Lichte Breite (W) [mm] | H37: Szerokość otworu (W) [mm] | I37: Largeur de baie (W) [mm] | J37: Opening breedte (W) [mm]
A38: Commande | E38: Ovládání | F38: Operated | G38: Bedienung | H38: Sterowanie | I38: Commande | J38: Bediening
A39: manuelle | E39: ručně | F39: manually | G39: händisch | H39: ręcznie wykonany | I39: manuelle | J39: handbediend
A40: motorisée | E40: elektricky | F40: electrical | G40: elektrisch | H40: elektrycznie | I40: motorisée | J40: elektrisch
A41: Retombée de linteau [mm] | E41: Výška nádpraží [mm] | F41: Height of lintel [mm] | G41: Freiraum über Sturz [mm] | H41: Wysokość nadproża [mm] | I41: Retombée de linteau [mm] | J41: Hoogte van de latei [mm]
A42: Retombée de linteau (F) [mm] | E42: Výška nádpraží (F) [mm] | F42: Height of lintel (F) [mm] | G42: Freiraum über Sturz (F) [mm] | H42: Wysokość nadproża (F) [mm] | I42: Retombée de linteau (F) [mm] | J42: Hoogte van de latei (F) [mm]
A43: Type de motor | E43: Typ pohonu | F43: Type of motor | G43: Der Typ des Antriebs | H43: Rodzaj napędu | I43: Type de motor | J43: Type motor
A44: Information concernant le moteur | E44: Informace o motoru | F44: Information regarding motor | G44: Die Information über den Antrieb | H44: Informacje o napędu | I44: Information concernant le moteur | J44: Informatie betreffende de motor
A45: Emplacement du joint d'étanchéité | E45: Umístění horního těsnění | F45: Placement of top sealing | G45: Die Unterbringung der Oberdichtung | H45: Umieszczenie górnego uszczelnienia | I45: Emplacement du joint d'étanchéité | J45: Plaatsing van de top afdichting
A46: au linteau | E46: na překladu | F46: at lintel | G46: Auf dem Sturz | H46: Na nadprožu | I46: au linteau | J46: op de latei
A47: sur le panneau supérieur | E47: na horní sekci | F47: on the top section | G47: Auf der Obersektion | H47: Na górnej częśći | I47: sur le panneau supérieur | J47: boven op top paneel
A48: SL version | E48: Verze SL vedení | F48: Version of SL track system | G48: Version der SL-Umlenkung | H48: SL wersja | I48: SL version | J48: Versie van SL beslagsysteem
A49: = Le kit sans trou percé dans le cornier vertical, le cornier vertical en exécution blanc (RAL 9010) | E49: = sety bez předvrtaných otvorů ve svislém úhelníku; svislý úhelník v bílém provedení (RAL 9010) | F49: = set without pre-drilled holes in vertical angle; vertical angle in white color (RAL 9010) | G49: = Zargensätze ohne vorgeborte Löcher, Ausführung in RAL 9010 | H49: = zestawy bez wcześniej nawierconych otworów pod kątem pionowym, kąt pionowy w kolorze białym (RAL 9010) | I49: = Le kit sans trou percé dans le cornier vertical, le cornier vertical en exécution blanc (RAL 9010) | J49: = Set is zonder voorgeboorde gaten in verticale hoek; verticale hoek in kleur wit (RAL 9010)
A50: L´ouverture de passage peut être réduite par les accessoires installés en intérieur du vantail de porte (les poignées, les renforts etc.) | E50: průjezdná výška může být snížena příslušenstvím nainstalovaným na vnitřní straně vratového křídla (madlo, výztuha apod.) | F50: clear height could be decreased by accessories installed on inner side of door leaf (handgrip, reinforcing strut etc.) | G50: Durchfahrtshöhe kann bei der Montage der Zubehörteile an die Innenseite des Torflügels reduziert werden (betrifft Handgriff, Versteifungen, etc.) | H50: wysokość prześwitu może zostać zmniejszona dzięki akcesoriom zainstalowanym po wewnętrznej stronie skrzydła drzwi (uchwyt, wzmocnienie itp.) | I50: L´ouverture de passage peut être réduite par les accessoires installés en intérieur du vantail de porte (les poignées, les renforts etc.) | J50: De hoogte van de vrije ruimte kan worden verlaagd door accessoires die aan de binnenkant van het deurblad zijn gemonteerd (handgreep, verstevigingsprofielen, enz.)
A51: avec la butée pour ventail de porte | E51: při použití zarážky vratového křídla | F51: when door stopper is used | G51: bei der Verwendung der Toorflügelsperre | H51: przy użyciu ogranicznika skrzydła bramy | I51: avec la butée pour ventail de porte | J51: wanneer de deurstopper wordt gebruikt
A52: Capacité min.de charge du plafond / capacité max.de charge des points d´ancre : 100kg | E52: Minimální únosnost stropu/maximální zatížení v každém kotevním bodě: 100 kg | F52: Min. load capacity of ceiling/max. weight per hanging point: 100 kg | G52: Minimale Tragfähigkeit der Decke/maximale Belastung in jedem einzelnen Befestigungspunkt: 100kg | H52: Minimalne obciążenie sufitu / maksymalne obciążenie w każdym punkcie uchwycenia: 100 kg | I52: Capacité min.de charge du plafond / capacité max.de charge des points d´ancre : 100kg | J52: Minimaal draagvermogen van plafond/maximaal gewicht per bevestigingspunt: 100kg

Sheet Selections (hidden)
A1: Výběr jazyka | C1: LHF-C
A2: CZ
A3: EN | C3: =Translation!B38 -> 0 | E3: Hloubka vedení | I3: =Translation!B43 -> 0 | K3: Délka pohonu | N3: Kotvící bod pohonu
A4: DE
A5: PL | C5: =Translation!B39 -> 0 | E5: 0 | F5: =2575 -> 2575 | I5: Black | K5: =I5 -> Black | N5: =I5 -> Black
A6: NL | C6: =Translation!B40 -> 0 | E6: 2001 | F6: 2700 | I6: RUN 600 | K6: 0 | L6: 3540 | N6: 0 | O6: 3265
A7: FR | E7: 2126 | F7: 2825 | K7: 2376 | L7: 4240 | N7: 2376 | O7: 3975
E8: 2251 | F8: 2950
A9: Výběr uložení | E9: 2376 | F9: 3075 | K9: =I6 -> RUN 600 | N9: =I6 -> RUN 600
A10: Ano | E10: 2501 | F10: 3325 | K10: 0 | L10: 3100 | N10: 0 | O10: 2950
A11: Ne | E11: 2751 | F11: 3575 | K11: 2126 | L11: 4240 | N11: 2126 | O11: 4060
C13: LHR-C
C15: =Translation!C38 -> 0 | E15: Hloubka vedení | I15: =Translation!C43 -> 0 | K15: Délka pohonu | N15: Kotvící bod pohonu
C17: =Translation!C39 -> 0 | E17: 0 | F17: =2575+120 -> 2695 | I17: Black | K17: =I17 -> Black | N17: =I17 -> Black
C18: =Translation!C40 -> 0 | E18: 2001 | F18: =2700+120 -> 2820 | I18: RUN 600 | K18: 0 | L18: 3540 | N18: 0 | O18: 3265
E19: 2126 | F19: =2825+120 -> 2945 | K19: 2376 | L19: 4240 | N19: 2376 | O19: 3975
C20: Umístění horního těsnění | E20: 2251 | F20: =2950+120 -> 3070 | I20: =Translation!C42 -> 0
E21: 2376 | F21: =3075+120 -> 3195 | I21: =IF(H21=Selections!C17,90,IF(H21=Selections!C18,125,"Error")) -> 90 | K21: =I18 -> RUN 600 | N21: =I18 -> RUN 600
C22: =Translation!C46 -> 0 | E22: 2501 | F22: =3325+120 -> 3445 | I22: =IF(H22=Selections!C22,0,IF(H22=Selections!C23,35,"Error")) -> 0 | K22: 0 | L22: 3100 | N22: 0 | O22: 2950
C23: =Translation!C47 -> 0 | E23: 2751 | F23: =3575+120 -> 3695 | K23: 2126 | L23: 4240 | N23: 2126 | O23: 4060
C25: GV-SL
C27: =Translation!D38 -> 0 | I27: =Translation!D43 -> 0 | K27: Délka pohonu | N27: Kotvící bod pohonu | Q27: =Translation!D48 -> 0
C29: =Translation!D39 -> 0 | I29: Black | K29: =I29 -> Black | N29: =I29 -> Black | Q29: SL 350
C30: =Translation!D40 -> 0 | I30: RUN 600 | K30: 0 | L30: 3540 | N30: 0 | O30: 3265 | Q30: SL 420
K31: 2376 | L31: 4240 | N31: 2376 | O31: 3975
K33: =I30 -> RUN 600 | N33: =I30 -> RUN 600
K34: 0 | L34: 3100 | N34: 0 | O34: 2950
K35: 2126 | L35: 4240 | N35: 2126 | O35: 4060
F46: Version of SL system | H46: SL wersja | I46: SL version
J49: wanneer de deurstopper wordt gebruikt
